bitfinex/quotes_SOLUSD_20250802
["timestamp","ask_amount","ask_price","bid_price","bid_amount"]
[1754173684654,0.2,158.55,158.54,45.3]
[1754173685074,0.86,158.55,158.54,45.3]
[1754173687061,0.86,158.55,158.53,6.38969949]
[1754173687062,0.86,158.55,158.53,0.63079543]
[1754173687386,6.41890406,158.54,158.52,45.3]
[1754173687683,6.41890406,158.53,158.52,45.3]
[1754173688067,6.41890406,158.53,158.5,45.36]
[1754173688276,5.75890406,158.51,158.5,45.36]
[1754173688576,6.41890406,158.51,158.5,45.36]
[1754173689073,0.66,158.51,158.5,0.06]
[1754173689275,6.41890406,158.51,158.5,0.06]
[1754173698168,23.20358803,158.51,158.48,0.06]
[1754173698369,26.0,158.46,158.43,0.06]
[1754173698568,26.0,158.46,158.43,6.478904]
[1754173698767,0.66,158.45,158.43,0.06]
[1754173698982,5.75890406,158.44,158.43,0.06]
[1754173699374,6.41890406,158.44,158.43,0.06]
[1754173700694,0.66,158.48,158.43,0.06]
[1754173700985,6.41890406,158.47,158.43,0.75]
[1754173701297,6.41890406,158.48,158.44,0.69]
[1754173701681,31.75890406,158.49,158.44,0.69]
[1754173701864,32.41890406,158.49,158.45,0.69]
[1754173702562,32.41890406,158.49,158.44,5.75890406]
[1754173702879,5.75890406,158.46,158.43,0.06]
[1754173703368,0.66,158.45,158.43,0.06]
[1754173704497,6.41890406,158.44,158.43,0.06]
[1754173705269,5.75890406,158.44,158.43,0.06]
[1754173705487,6.41890406,158.46,158.43,0.06]
[1754173706167,0.66,158.52,158.45,5.75890406]
[1754173706372,5.75890406,158.54,158.49,5.75890406]
[1754173706588,6.41890406,158.53,158.47,0.69]
[1754173706772,5.75890406,158.52,158.48,5.75890406]
[1754173707178,5.75890406,158.52,158.48,6.44890406]
[1754173707386,6.41890406,158.52,158.45,26.63111391]
[1754173707600,6.41890406,158.52,158.47,5.75890406]
[1754173707905,26.2,158.55,158.48,5.75890406]
[1754173708116,31.75890406,158.53,158.48,6.44890406]
[1754173708605,5.75890406,158.52,158.48,6.44890406]
[1754173709577,5.75890406,158.52,158.48,0.69]
[1754173709778,5.75890406,158.52,158.48,6.44890406]
[1754173710221,6.41890406,158.51,158.45,0.69]
[1754173710372,5.75890406,158.48,158.43,6.50890406]
[1754173710573,0.66,158.5,158.43,0.06]
[1754173710574,5.75890406,158.46,158.43,0.06]
[1754173710773,6.41890406,158.49,158.44,6.44890406]
[1754173711066,6.41890406,158.49,158.43,0.06]
[1754173711067,5.75890406,158.47,158.43,0.06]
[1754173711302,5.75890406,158.46,158.43,0.06]
[1754173711597,6.46890406,158.46,158.43,0.06]
[1754173712471,5.75890406,158.47,158.43,0.77]
[1754173713279,6.46890406,158.47,158.43,0.06]
[1754173714005,5.75890406,158.46,158.43,0.06]
[1754173714904,6.46890406,158.46,158.43,0.06]
[1754173715087,26.0,158.5,158.44,0.71]
[1754173715403,6.46890406,158.51,158.44,0.71]
[1754173715585,5.75890406,158.49,158.45,5.75890406]
[1754173715782,5.75890406,158.49,158.43,0.06]
[1754173715984,5.75890406,158.47,158.43,0.06]
[1754173716207,6.46890406,158.48,158.43,5.81890406]
[1754173716378,0.71,158.48,158.44,5.75890406]
[1754173716578,0.71,158.5,158.45,6.46890406]
[1754173716910,6.46890406,158.5,158.46,0.71]
[1754173717285,0.71,158.49,158.44,0.71]
[1754173717606,26.0,158.51,158.44,0.71]
[1754173717607,6.46890406,158.48,158.44,6.46890406]
[1754173717823,0.71,158.48,158.44,6.46890406]
[1754173718695,5.75890406,158.49,158.44,6.46890406]
[1754173718696,0.71,158.5,158.44,5.75890406]
[1754173718879,6.46890406,158.5,158.45,6.46890406]
[1754173719081,6.46890406,158.5,158.46,0.71]
[1754173719505,5.75890406,158.49,158.44,6.46890406]
[1754173719703,6.46890406,158.49,158.44,6.46890406]
[1754173719883,5.75890406,158.49,158.44,6.46890406]
[1754173720080,0.71,158.48,158.44,6.46890406]
[1754173720696,4.90159597,158.5,158.45,6.46890406]
[1754173720893,5.75890406,158.49,158.45,6.46890406]
[1754173721393,6.46890406,158.49,158.45,6.46890406]
[1754173721593,0.71,158.49,158.45,0.71]
[1754173721810,0.71,158.49,158.45,6.46890406]
[1754173722917,5.75890406,158.5,158.45,6.46890406]
[1754173723213,10.66979662,158.5,158.45,6.46890406]
[1754173723401,10.66979662,158.5,158.46,0.71]
[1754173724492,10.66979662,158.5,158.45,5.75890406]
[1754173724690,6.46890406,158.49,158.45,6.46890406]
[1754173725344,0.71,158.48,158.43,46.35]
[1754173725496,6.46890406,158.48,158.43,51.39890406]
[1754173725694,0.71,158.47,158.43,52.10890406]
[1754173725896,5.75890406,158.48,158.44,0.71]
[1754173726101,6.46890406,158.48,158.44,0.71]
[1754173726307,0.71,158.48,158.44,6.46890406]
[1754173726515,9.95979662,158.5,158.45,6.46890406]
[1754173726724,4.20089256,158.49,158.46,0.71]
[1754173726895,0.71,158.48,158.44,5.75890406]
[1754173727811,0.71,158.48,158.44,6.46890406]
[1754173729822,0.71,158.48,158.43,45.64]
[1754173729823,0.71,158.47,158.43,51.39890406]
[1754173730124,0.71,158.47,158.43,45.64]
[1754173730125,0.71,158.46,158.43,45.64]
[1754173730640,5.75890406,158.45,158.43,0.06]
[1754173730795,4.20977787,158.47,158.43,0.77]
[1754173731004,26.0,158.46,158.44,0.71]
[1754173731396,5.75890406,158.47,158.44,0.71]
[1754173731616,9.97350607,158.47,158.43,0.06]
[1754173731810,9.97350607,158.47,158.43,0.77]
[1754173732426,4.21460201,158.46,158.45,5.75890406]
[1754173732616,4.21726155,158.47,158.46,0.71]
[1754173732808,4.21726155,158.49,158.46,0.71]
[1754173733008,4.21726155,158.48,158.46,0.71]
[1754173733225,4.21726155,158.49,158.46,0.71]
[1754173733535,4.21726155,158.48,158.46,0.71]
[1754173733707,4.21726155,158.49,158.46,0.71]
[1754173733909,4.21726155,158.48,158.46,0.71]
[1754173734116,10.68616561,158.49,158.44,6.46890406]
[1754173734323,4.21726155,158.48,158.45,0.71]
[1754173735352,4.21726155,158.48,158.46,0.71]
[1754173735551,4.21726155,158.49,158.47,0.71]
[1754173735700,4.21726155,158.5,158.47,0.71]
[1754173735903,4.21726155,158.49,158.47,0.71]
[1754173736220,4.21726155,158.5,158.47,0.71]
[1754173736399,4.21726155,158.49,158.47,0.71]
[1754173736606,4.21726155,158.5,158.47,0.71]
[1754173736809,4.21726155,158.49,158.47,5.75890406]
[1754173737010,4.21726155,158.5,158.48,0.71]
[1754173737234,4.21726155,158.49,158.48,0.71]
[1754173737446,4.21726155,158.5,158.48,0.71]
[1754173738024,4.21726155,158.5,158.49,0.71]
[1754173738359,4.24726155,158.52,158.49,6.46890406]
[1754173738509,0.03,158.52,158.5,5.75890406]
[1754173738714,0.03,158.52,158.51,0.71]
[1754173738914,0.03,158.52,158.5,5.75890406]
[1754173739114,0.03,158.52,158.5,6.46890406]
[1754173740117,0.03,158.52,158.5,0.71]
[1754173743134,0.03,158.52,158.5,6.46890406]
[1754173743328,0.03,158.52,158.5,0.71]
[1754173743548,0.03,158.52,158.51,0.68]
[1754173744047,0.03,158.52,158.51,6.43890406]
[1754173746117,0.03,158.52,158.51,0.68]
[1754173753433,0.03,158.52,158.48,0.63099444]
[1754173753657,0.03,158.52,158.47,71.32]
[1754173753658,0.73,158.52,158.47,26.0]
[1754173753859,0.7,158.51,158.48,0.68]
[1754173754076,0.7,158.51,158.48,6.43890406]
[1754173754370,0.03,158.52,158.48,6.43890406]
[1754173754573,0.73,158.52,158.48,6.43890406]
[1754173755752,6.45890406,158.51,158.46,45.38]
[1754173755938,5.75890406,158.5,158.46,51.13890406]
[1754173756145,0.7,158.49,158.46,51.13890406]
[1754173756344,6.45890406,158.51,158.46,51.81890406]
[1754173756548,5.75890406,158.51,158.47,0.68]
[1754173756843,31.78890406,158.52,158.47,6.43890406]
[1754173757049,31.78890406,158.52,158.48,0.68]
[1754173757264,31.78890406,158.52,158.49,0.68]
[1754173757465,0.03,158.52,158.48,5.75890406]
[1754173757683,6.48890406,158.52,158.48,0.68]
[1754173757846,0.7,158.51,158.46,46.06]
[1754173758045,0.7,158.51,158.47,0.68]
[1754173758264,6.45890406,158.5,158.46,45.38]
[1754173758479,0.7,158.49,158.46,45.38]
[1754173759068,5.75890406,158.49,158.46,0.06]
[1754173759388,6.45890406,158.48,158.46,0.06]
[1754173759745,0.7,158.48,158.46,0.06]
[1754173761477,4.21648893,158.5,158.47,0.68]
[1754173763066,9.97539299,158.5,158.47,0.68]
[1754173765265,10.67539299,158.5,158.47,0.68]
[1754173765462,10.67539299,158.5,158.46,0.06]
[1754173765666,6.45890406,158.49,158.46,0.06]
[1754173766171,0.7,158.48,158.46,0.06]
[1754173769478,0.7,158.48,158.47,0.06]
[1754173772283,10.62539299,158.5,158.47,0.06]
[1754173774481,0.65,158.49,158.47,0.06]
[1754173774801,10.62539299,158.5,158.47,0.06]
[1754173775385,0.65,158.49,158.47,0.06]
[1754173777689,4.86969328,158.49,158.47,0.06]
[1754173777982,0.65,158.49,158.47,0.06]
[1754173778287,9.97859734,158.5,158.47,0.06]
[1754173778468,0.65,158.48,158.47,0.06]
[1754173779385,30.86969328,158.5,158.47,0.06]
[1754173779582,4.21969328,158.49,158.47,0.06]
[1754173779788,10.62859734,158.49,158.47,0.06]
[1754173780893,0.65,158.48,158.47,0.06]
[1754173782380,10.62859734,158.49,158.47,0.06]
[1754173783498,0.65,158.48,158.47,0.06]
[1754173784175,9.97859734,158.49,158.47,0.06]
[1754173784676,10.62859734,158.49,158.47,0.06]
[1754173786923,6.40890406,158.48,158.47,0.06]
[1754173787229,33.17218537,158.48,158.47,0.06]
[1754173787378,38.41853075,158.48,158.47,0.06]
[1754173788890,32.65962669,158.48,158.47,0.06]
[1754173789091,27.41328131,158.48,158.47,0.06]
[1754173790097,33.17218537,158.48,158.47,0.06]
[1754173791183,4.21969328,158.48,158.47,0.06]
[1754173791810,4.21969328,158.48,158.47,0.74]
[1754173794322,4.21969328,158.48,158.47,0.06]
[1754173794827,9.97859734,158.48,158.47,0.06]
[1754173795431,10.62859734,158.48,158.47,0.06]
[1754173796721,4.21969328,158.48,158.47,0.74]
[1754173797520,4.21969328,158.48,158.47,0.06]
[1754173799822,4.21969328,158.48,158.47,0.74]
[1754173799995,4.21969328,158.49,158.47,0.74]
[1754173800196,4.21969328,158.48,158.47,0.74]
[1754173801007,4.21969328,158.48,158.47,0.06]
[1754173802528,45.3,158.5,158.47,0.74]
[1754173802529,4.21969328,158.49,158.47,0.74]
[1754173802715,4.21969328,158.48,158.47,0.06]
[1754173803033,4.21969328,158.49,158.47,0.06]
[1754173803208,4.21969328,158.48,158.47,0.06]
[1754173803417,4.21969328,158.49,158.47,0.74]
[1754173803729,4.21969328,158.48,158.47,0.74]
[1754173803911,4.21969328,158.49,158.47,0.74]
[1754173804105,4.21969328,158.48,158.47,0.74]
[1754173804339,4.21969328,158.49,158.48,0.68]
[1754173804631,4.21969328,158.5,158.48,0.68]
[1754173804831,4.21969328,158.49,158.47,5.81890406]
[1754173805129,4.21969328,158.5,158.47,5.81890406]
[1754173805330,4.21969328,158.49,158.47,0.06]
[1754173805509,4.21969328,158.5,158.47,0.06]
[1754173805830,4.21969328,158.49,158.48,0.68]
[1754173806002,4.21969328,158.5,158.47,5.81890406]
[1754173806196,4.22529604,158.5,158.49,0.68]
[1754173807102,4.25529604,158.51,158.49,0.68]
[1754173807302,4.25529604,158.51,158.5,6.43890406]
[1754173808232,0.03,158.51,158.5,6.43890406]
[1754173808399,0.03,158.51,158.5,0.68]
[1754173809314,0.03,158.51,158.48,0.68]
[1754173809655,0.03,158.51,158.49,6.43890406]
[1754173809803,0.03,158.51,158.49,0.68]
[1754173810003,0.03,158.51,158.5,0.68]
[1754173810931,0.03,158.51,158.48,5.75890406]
[1754173811131,0.03,158.51,158.49,0.68]
[1754173811436,0.03,158.51,158.49,6.43890406]
[1754173811821,0.03,158.51,158.5,0.68]
[1754173814325,0.03,158.51,158.47,6.49890406]
[1754173814537,6.45890406,158.51,158.47,0.74]
[1754173814933,6.45890406,158.51,158.48,0.68]
[1754173815632,0.7,158.51,158.48,0.68]
[1754173815814,0.03,158.51,158.48,0.68]
[1754173816434,0.03,158.51,158.48,5.75890406]
[1754173816644,0.03,158.51,158.49,0.68]
[1754173819413,0.03,158.51,158.47,5.81890406]
[1754173819608,0.03,158.51,158.48,0.68]
[1754173820050,0.03,158.51,158.47,0.06]
[1754173820215,5.75890406,158.48,158.47,0.06]
[1754173820831,6.42890406,158.48,158.47,0.06]
[1754173821038,0.67,158.5,158.47,0.06]
[1754173821219,6.42890406,158.49,158.47,0.06]
[1754173822732,0.67,158.48,158.47,0.06]
[1754173822939,6.42890406,158.48,158.47,0.06]
[1754173824656,11.1115121,158.48,158.47,0.06]
[1754173824832,15.32974641,158.48,158.47,0.06]
[1754173825552,41.32974641,158.48,158.47,0.06]
[1754173825937,86.58974641,158.48,158.47,0.06]
[1754173827853,85.91974641,158.48,158.47,0.06]
[1754173831451,86.58974641,158.48,158.47,0.06]
[1754173832040,109.13333444,158.48,158.47,0.06]
[1754173832354,88.37967982,158.48,158.47,0.06]
[1754173833932,16.78468397,158.47,158.45,0.06]
[1754173834133,91.17964361,158.46,158.45,0.06]
[1754173834327,91.84964361,158.46,158.45,0.06]
[1754173834740,91.83633677,158.46,158.45,0.06]
[1754173835740,65.83633677,158.46,158.45,0.06]
[1754173838352,60.57810084,158.46,158.45,0.06]
[1754173838554,65.83633677,158.46,158.45,0.06]
[1754173840054,59.57810084,158.46,158.45,0.06]
[1754173840469,76.36278481,158.46,158.45,0.06]
[1754173840666,76.34519346,158.46,158.45,0.06]
[1754173840833,78.87707946,158.46,158.45,0.06]
[1754173841245,78.87707946,158.46,158.43,0.06]
[1754173841246,26.0,158.44,158.43,0.06]
[1754173841455,85.89050949,158.44,158.43,0.06]
[1754173841636,86.56050949,158.44,158.43,0.06]
[1754173843358,40.63050949,158.44,158.43,0.06]
[1754173843549,55.68392075,158.44,158.43,0.76]
[1754173843870,59.87685346,158.44,158.43,0.06]
[1754173844760,59.87685346,158.44,158.43,0.76]
[1754173847462,4.66501669,158.44,158.43,0.76]
[1754173847782,5.75890406,158.45,158.43,0.76]
[1754173849754,4.19170232,158.47,158.43,0.76]
[1754173849957,5.75890406,158.45,158.43,0.76]
[1754173850845,4.19201729,158.47,158.43,0.76]
[1754173851178,5.75890406,158.45,158.43,0.76]
[1754173851550,5.75890406,158.46,158.43,0.76]
[1754173853371,5.75890406,158.47,158.43,0.76]
[1754173853977,45.26,158.48,158.43,0.06]
[1754173854277,5.75890406,158.45,158.44,0.7]
[1754173854474,0.67,158.47,158.44,0.7]
[1754173854776,31.75890406,158.46,158.45,0.7]
[1754173856269,5.75890406,158.46,158.45,0.7]
[1754173856569,71.26,158.48,158.45,0.7]
[1754173856570,77.01890406,158.48,158.45,0.7]
[1754173856953,31.75890406,158.48,158.45,0.7]
[1754173857150,5.75890406,158.47,158.45,0.7]
[1754173857358,5.75890406,158.46,158.45,0.7]
[1754173860387,5.75890406,158.47,158.45,0.7]
[1754173860681,5.75890406,158.47,158.46,0.7]
[1754173863467,10.43326542,158.47,158.46,0.7]
[1754173864194,4.67436136,158.47,158.46,0.7]
[1754173864372,4.67622825,158.47,158.46,0.7]
[1754173866568,11.10513231,158.47,158.43,0.75]
[1754173866790,6.42890406,158.47,158.43,0.75]
[1754173867095,6.42890406,158.47,158.44,0.69]
[1754173867383,6.42890406,158.47,158.43,0.06]
[1754173867384,5.75890406,158.45,158.43,0.06]
[1754173867590,5.75890406,158.44,158.43,0.06]
[1754173868182,6.42890406,158.45,158.43,0.06]
[1754173868490,11.10602891,158.44,158.43,0.06]
[1754173868692,15.31469134,158.44,158.43,0.06]
[1754173870170,14.64469134,158.44,158.43,0.06]
[1754173870696,8.88578728,158.44,158.43,0.06]
[1754173870870,4.67712485,158.44,158.43,0.75]
[1754173871194,5.75890406,158.46,158.43,0.75]
[1754173871359,4.67885034,158.45,158.44,0.69]
[1754173871865,4.67885034,158.45,158.43,0.75]
[1754173872164,5.75890406,158.46,158.43,0.75]
[1754173872364,4.67893081,158.45,158.43,0.75]
[1754173872577,6.42890406,158.46,158.43,0.06]
[1754173872778,10.43773067,158.45,158.43,0.06]
[1754173872979,5.75890406,158.45,158.43,0.06]
[1754173873185,4.2108105,158.46,158.43,0.06]
[1754173873385,10.43717917,158.45,158.43,0.75]
[1754173873592,5.75890406,158.45,158.43,0.75]
[1754173874186,5.75890406,158.45,158.43,0.06]
[1754173874391,11.10307272,158.44,158.43,0.06]
[1754173874595,15.31114671,158.44,158.43,0.06]
[1754173879424,8.88224265,158.44,158.43,0.06]
[1754173879586,4.67416866,158.44,158.43,0.75]
[1754173880277,4.20208732,158.45,158.43,0.75]
[1754173880476,4.20208732,158.46,158.43,0.75]
[1754173880677,4.66925001,158.45,158.43,0.75]
[1754173880979,4.20208732,158.46,158.43,6.50890406]
[1754173881293,4.6693502,158.45,158.44,0.69]
[1754173882800,0.03,158.47,158.44,0.69]
[1754173883109,0.03,158.47,158.45,0.69]
[1754173884018,0.03,158.47,158.45,6.44890406]
[1754173884510,0.03,158.47,158.46,0.69]
[1754173884825,0.03,158.47,158.46,6.44890406]
[1754173886826,0.03,158.47,158.46,7.07997814]
[1754173886992,0.03,158.47,158.46,23.86466211]
[1754173890505,0.03,158.47,158.46,29.62356617]
[1754173891310,0.03,158.47,158.46,18.10575805]
[1754173891516,0.03,158.47,158.46,7.07997814]
[1754173892227,0.03,158.47,158.46,33.07997814]
[1754173895614,0.03,158.47,158.46,35.60962314]
[1754173904240,0.03,158.47,158.46,26.39430711]
[1754173908446,0.03,158.47,158.46,8.91962314]
[1754173908652,0.03,158.47,158.46,54.09962314]
[1754173918246,0.03,158.47,158.46,54.75962314]
[1754173920460,0.03,158.47,158.46,71.54430711]
[1754173921535,0.03,158.49,158.47,16.78468397]
[1754173921770,0.03,158.51,158.5,42.78468397]
[1754173921940,0.03,158.51,158.5,48.54358803]
[1754173922138,0.03,158.51,158.5,94.42358803]
[1754173922334,0.73,158.51,158.5,2.528685]
[1754173922645,0.73,158.51,158.5,47.688685]
[1754173922844,0.73,158.51,158.5,53.44758906]
[1754173923038,0.03,158.51,158.5,54.16758906]
[1754173924462,0.73,158.51,158.5,8.28758906]
[1754173924641,0.73,158.51,158.5,53.44758906]
[1754173926370,0.03,158.51,158.5,53.44758906]
[1754173927373,0.03,158.51,158.5,54.79850388]
[1754173928875,0.03,158.51,158.5,71.58318785]
[1754173932963,0.03,158.52,158.5,71.58318785]
[1754173933278,0.03,158.52,158.51,23.26358803]
[1754173934181,0.03,158.53,158.52,26.78468397]
[1754173934356,0.03,158.53,158.52,78.31442325]
[1754173934558,0.03,158.53,158.52,79.03442325]
[1754173935586,0.2,158.55,158.54,16.78468397]
[1754173935880,0.2,158.55,158.54,68.31434367]
[1754173936050,0.2,158.55,158.54,69.03434367]
[1754173938994,0.2,158.55,158.54,216.33434367]
[1754173939287,0.2,158.55,158.54,221.46249209]
[1754173939704,0.03,158.56,158.55,16.78468397]
[1754173939991,0.03,158.56,158.55,29.02249209]
[1754173940171,0.03,158.56,158.55,28.30249209]
[1754173940377,0.03,158.56,158.55,29.65320795]
[1754173940597,0.03,158.56,158.55,32.18061495]
[1754173940979,0.03,158.57,158.56,28.30249209]
[1754173941297,0.03,158.57,158.56,74.14249209]
[1754173941499,0.1,158.61,158.57,16.78468397]
[1754173941796,0.1,158.61,158.57,23.89422434]
[1754173941967,0.1,158.61,158.6,42.78468397]
[1754173942285,0.1,158.61,158.6,94.29410505]
[1754173942481,0.1,158.61,158.6,95.01410505]
[1754173943110,0.1,158.61,158.6,97.54119205]
[1754173944301,0.1,158.61,158.6,96.82119205]
[1754173945234,0.1,158.61,158.6,2.527087]
[1754173945235,0.8,158.61,158.6,2.527087]
[1754173945514,0.8,158.61,158.6,28.527087]
[1754173945710,0.8,158.61,158.6,47.627087]
[1754173945909,6.55890406,158.61,158.6,45.1]
[1754173946299,0.8,158.61,158.6,45.1]
[1754173946987,0.8,158.61,158.6,51.48942108]
[1754173947194,0.1,158.61,158.6,51.48942108]
[1754173948188,0.54,158.61,158.6,51.48942108]
[1754173948678,0.1,158.61,158.6,77.48942108]
[1754173949309,0.1,158.61,158.6,78.20942108]
[1754173949894,0.1,158.61,158.6,52.20942108]
[1754173952501,0.1,158.61,158.6,68.99410505]
[1754173952702,0.1,158.61,158.6,71.52135205]
[1754173953820,0.1,158.63,158.61,16.78468397]
[1754173953983,0.1,158.63,158.62,74.03292961]
[1754173954186,0.2,158.64,158.63,16.78468397]
[1754173954427,0.2,158.64,158.63,28.96249209]
[1754173955799,0.2,158.64,158.63,31.48878109]
[1754173956007,0.1,158.65,158.63,31.48878109]
[1754173956193,0.1,158.65,158.64,74.03285013]
[1754173956398,0.1,158.65,158.64,74.69285013]
[1754173961136,0.1,158.65,158.64,74.03285013]
[1754173961283,0.81,158.65,158.64,0.63035804]
[1754173961621,0.81,158.65,158.56,15.75890406]
[1754173961622,6.56890406,158.65,158.6,5.75890406]
[1754173961788,6.46890406,158.64,158.61,45.08]
[1754173962108,5.75890406,158.64,158.63,26.0]
[1754173962317,5.85890406,158.65,158.63,71.08]
[1754173962500,0.1,158.65,158.63,71.08]
[1754173962692,0.71,158.64,158.63,76.83890406]
[1754173963709,0.71,158.64,158.63,71.08]
[1754173965218,0.1,158.65,158.63,77.46930184]
[1754173965524,0.71,158.64,158.63,71.08]
[1754173965923,0.1,158.65,158.63,76.83890406]
[1754173966094,0.1,158.65,158.64,5.75890406]
[1754173966288,0.1,158.65,158.64,6.3892621]
[1754173966487,0.1,158.65,158.64,23.17394607]
[1754173966694,0.1,158.65,158.64,23.83394607]
[1754173968614,0.1,158.65,158.64,29.59285013]
[1754173969908,0.1,158.67,158.66,16.78468397]
[1754173970219,0.1,158.68,158.67,16.78468397]
[1754173970391,0.1,158.68,158.67,68.26358803]
[1754173971222,0.03,158.7,158.69,42.78468397]
[1754173971423,0.03,158.7,158.69,94.23374746]
[1754173971612,0.03,158.7,158.69,94.89374746]
[1754173972923,0.1,158.72,158.7,16.78468397]
[1754173973111,0.1,158.72,158.71,68.23366805]
[1754173973642,0.1,158.72,158.71,68.89366805]
[1754173974422,0.81,158.72,158.71,0.63008002]
[1754173974616,0.81,158.72,158.71,50.81890406]
[1754173974816,0.81,158.72,158.71,51.44898408]
[1754173975217,0.1,158.72,158.71,51.44898408]
[1754173975905,0.81,158.72,158.71,51.44898408]
[1754173976121,0.81,158.72,158.71,57.20788808]
[1754173977936,0.1,158.72,158.71,57.20788808]
[1754173979312,0.1,158.72,158.71,73.99257205]
[1754173980402,0.81,158.72,158.71,57.20788808]
[1754173980800,0.1,158.72,158.71,57.20788808]
[1754173981935,0.78,158.72,158.71,57.20788808]
[1754173982339,0.78,158.72,158.71,6.38898402]
[1754173982635,0.78,158.72,158.71,45.04]
[1754173983222,0.78,158.72,158.71,50.79890406]
[1754173983832,0.78,158.72,158.71,45.04]
[1754173986143,0.78,158.72,158.7,5.75890406]
[1754173986468,0.1,158.72,158.71,51.42898408]
[1754173986633,0.1,158.72,158.71,52.11898408]
[1754173988229,0.1,158.72,158.71,57.87788808]
[1754173990757,0.1,158.72,158.71,57.18788808]
[1754173991375,0.1,158.72,158.71,51.42898402]
[1754173991577,0.1,158.72,158.71,57.18788808]
[1754173992562,0.1,158.72,158.71,57.87788808]
[1754173992765,0.1,158.72,158.71,57.85788808]
[1754173993362,0.1,158.72,158.71,57.16788808]
[1754173994366,0.1,158.72,158.71,12.14788808]
[1754173994549,0.1,158.72,158.71,57.16788808]
[1754173994738,0.1,158.72,158.71,57.85788808]
[1754173995558,0.1,158.72,158.71,57.16788808]
[1754173996651,0.1,158.72,158.71,57.85788808]
[1754173996856,0.1,158.72,158.71,74.64257205]
[1754174000702,0.1,158.72,158.71,77.83457522]
[1754174001980,0.1,158.72,158.71,83.59347928]
[1754174005202,0.68,158.79,158.74,26.0]
[1754174005351,0.68,158.79,158.78,5.75890406]
[1754174005555,0.68,158.79,158.78,50.75890406]
[1754174005755,0.68,158.79,158.78,56.51780806]
[1754174007257,0.1,158.8,158.78,57.20780806]
[1754174007460,0.1,158.8,158.79,29.62225466]
[1754174008187,0.1,158.8,158.79,18.10444654]
[1754174008402,0.1,158.8,158.79,29.62225466]
[1754174008707,0.68,158.87,158.86,26.0]
[1754174008865,0.68,158.87,158.86,76.75890406]
[1754174009356,0.1,158.88,158.86,76.75890406]
[1754174009562,0.78,158.88,158.87,5.75890406]
[1754174009785,0.1,158.88,158.87,5.75890406]
[1754174010757,0.1,158.88,158.86,71.62948508]
[1754174011169,0.1,158.88,158.87,5.75890406]
[1754174011462,0.1,158.88,158.86,71.62948508]
[1754174011683,0.71,158.87,158.85,26.0]
[1754174011888,0.1,158.88,158.86,51.36838914]
[1754174012104,0.1,158.88,158.87,31.75890406]
[1754174012321,0.1,158.88,158.87,26.0]
[1754174012615,0.1,158.88,158.87,31.75890406]
[1754174016108,0.1,158.88,158.87,76.87890406]
[1754174016306,0.1,158.88,158.87,31.75890406]
[1754174016510,0.1,158.88,158.87,76.87890406]
[1754174016808,0.1,158.88,158.87,31.75890406]
[1754174017180,0.1,158.88,158.87,76.85890406]
[1754174017380,0.1,158.88,158.87,50.85890406]
[1754174017580,0.1,158.88,158.87,56.61780806]
[1754174018809,0.1,158.88,158.87,74.09249203]
[1754174019198,0.1,158.88,158.87,80.48084154]
[1754174020827,0.81,158.96,158.91,42.78468397]
[1754174021094,0.81,158.96,158.93,5.75890406]
[1754174021396,0.81,158.96,158.94,64.0173]
[1754174021719,0.81,158.96,158.94,69.77620406]